bitfinex-derivatives/quotes_SOLF0:USTF0_20250105
["timestamp","ask_amount","ask_price","bid_price","bid_amount"]
[1736043964311,9.52710253,216.02,215.96,9.52760253]
[1736043964809,9.52710253,216.02,215.97,2.3154]
[1736043965111,7.21220253,216.02,215.97,2.3154]
[1736043967111,7.21220253,216.02,215.98,2.3153]
[1736043967612,12.08700253,216.04,215.98,2.3153]
[1736043969009,4.8748,216.04,215.98,2.3153]
[1736043969209,7.21220253,216.03,215.98,2.3153]
[1736043970809,4.8748,216.04,215.9,2.9549]
[1736043970810,7.21220253,216.01,215.9,2.9549]
[1736043971112,7.21220253,216.01,215.94,2.3157]
[1736043972007,9.52720253,216.01,215.94,2.3157]
[1736043972811,2.3151,216.0,215.93,7.21220253]
[1736043973109,2.3151,216.0,215.95,9.52780253]
[1736043973414,7.21220253,216.03,215.97,7.21220253]
[1736043973708,9.52700253,216.03,215.97,9.52750253]
[1736043973910,9.52700253,216.03,215.97,2.3153]
[1736043974104,7.21220253,216.03,215.96,7.21220253]
[1736043974304,2.315,216.02,215.96,7.21220253]
[1736043976111,2.315,216.02,215.96,9.52760253]
[1736043976515,2.315,216.02,215.96,7.21220253]
[1736043977014,9.52700253,216.03,215.97,2.3154]
[1736043977413,9.52680253,216.05,215.98,9.52750253]
[1736043977618,9.52680253,216.05,215.98,7.21220253]
[1736043977917,2.3146,216.05,215.98,7.21220253]
[1736043978515,2.3146,216.05,215.99,2.3151]
[1736043979621,12.08670253,216.06,215.99,2.3151]
[1736043983722,2.3145,216.06,215.98,7.21220253]
[1736043983917,9.52670253,216.06,216.0,2.3151]
[1736043985522,9.52670253,216.06,215.99,2.3152]
[1736043987222,9.52670253,216.06,215.99,9.52740253]
[1736043987424,8.47826438,216.08,216.02,2.3149]
[1736043987624,15.69046691,216.08,216.02,2.3149]
[1736043988426,13.13046691,216.08,216.02,2.3149]
[1736043989027,13.13046691,216.08,216.01,7.21220253]
[1736043989227,10.81606691,216.08,216.01,9.52720253]
[1736043989425,2.3144,216.07,216.01,9.52720253]
[1736043991923,2.3147,216.04,215.98,2.56]
[1736043992131,7.21220253,216.04,215.98,2.56]
[1736043992329,7.21220253,216.04,215.97,7.21220253]
[1736043992926,2.3149,216.02,215.97,7.21220253]
[1736043993731,2.3149,216.02,215.96,2.3155]
[1736043993732,7.21220253,216.04,215.93,2.56]
[1736043993920,7.21220253,216.04,215.95,9.52780253]
[1736043994125,7.21220253,216.02,215.95,9.52780253]
[1736043994427,2.3152,215.99,215.95,7.21220253]
[1736043994722,2.3152,215.99,215.92,1.4266]
[1736043994723,7.21220253,216.0,215.92,1.4266]
[1736043994922,7.21220253,216.0,215.92,8.63880253]
[1736043995627,2.3154,215.98,215.92,10.95480253]
[1736044001933,2.3154,215.98,215.92,2.316]
[1736044002235,2.3154,215.97,215.92,7.21220253]
[1736044003632,7.21220253,215.98,215.92,7.21220253]
[1736044003834,2.3156,215.96,215.92,7.21220253]
[1736044004236,2.3157,215.95,215.92,7.21220253]
[1736044004631,2.3157,215.95,215.9,9.52830253]
[1736044006732,2.3155,215.97,215.92,9.52810253]
[1736044006939,9.91911581,216.03,215.94,7.21220253]
[1736044006940,7.21220253,216.01,215.94,7.21220253]
[1736044007234,2.56,216.0,215.94,7.21220253]
[1736044007631,4.8752,216.0,215.94,9.52790253]
[1736044009240,4.8752,216.0,215.94,7.21220253]
[1736044009729,7.21220253,215.99,215.92,7.21220253]
[1736044009931,9.52760253,215.97,215.88,4.3398]
[1736044010130,9.52760253,215.97,215.9,7.21220253]
[1736044011532,9.52760253,215.97,215.91,2.3161]
[1736044012841,2.3156,215.96,215.91,2.3161]
[1736044018842,2.3156,215.96,215.89,7.21220253]
[1736044019147,2.3156,215.96,215.9,2.3162]
[1736044025451,2.3156,215.96,215.91,2.3161]
[1736044025752,2.3154,215.98,215.91,7.21220253]
[1736044025952,2.3154,215.98,215.92,2.3159]
[1736044026951,9.52760253,215.97,215.91,2.3161]
[1736044029449,7.21220253,215.95,215.91,2.3161]
[1736044032346,7.21220253,215.95,215.92,2.316]
[1736044032548,9.52760253,215.97,215.92,2.316]
[1736044033454,12.08760253,215.97,215.92,2.316]
[1736044035252,2.56,215.97,215.93,2.3158]
[1736044035554,2.56,215.97,215.91,7.21220253]
[1736044036459,2.56,215.97,215.94,2.3157]
[1736044037360,7.21220253,215.98,215.94,2.3157]
[1736044039764,2.56,215.99,215.94,2.3157]
[1736044039959,7.21220253,215.98,215.94,2.3157]
[1736044046366,16.04465471,215.98,215.94,2.3157]
[1736044046865,7.21220253,215.98,215.94,2.3157]
[1736044047862,16.04465471,215.98,215.94,2.3157]
[1736044048057,8.83245218,215.98,215.94,2.3157]
[1736044048258,6.03479602,215.99,215.94,2.3157]
[1736044048465,7.21220253,215.98,215.94,2.3157]
[1736044048867,7.21220253,215.98,215.89,7.21220253]
[1736044049070,9.52750253,215.98,215.92,2.3159]
[1736044049262,13.00229855,215.98,215.92,2.3159]
[1736044049463,8.83245218,215.97,215.92,2.3159]
[1736044050363,9.52750253,215.98,215.92,2.3159]
[1736044051369,21.83480517,215.98,215.92,2.3159]
[1736044051566,21.83480517,215.98,215.93,2.3159]
[1736044051567,9.52750253,215.98,215.93,2.3159]
[1736044052471,7.21220253,215.98,215.94,2.3157]
[1736044052673,18.60629844,215.98,215.94,2.3157]
[1736044053077,9.77220253,215.98,215.94,2.3157]
[1736044053876,18.60629844,215.98,215.94,2.3157]
[1736044054678,9.77220253,215.98,215.94,2.3157]
[1736044055174,7.21220253,215.99,215.94,2.3157]
[1736044055378,7.21220253,215.99,215.91,7.21220253]
[1736044055574,11.39409591,216.0,215.96,2.3155]
[1736044055780,2.56,216.0,215.96,2.3155]
[1736044056470,2.56,216.0,215.97,2.3154]
[1736044056672,8.83409591,216.04,215.95,7.21220253]
[1736044056877,16.04629844,216.04,215.97,7.21220253]
[1736044057182,7.21220253,216.04,215.97,7.21220253]
[1736044058582,18.35208913,216.06,216.0,2.3151]
[1736044058777,7.21220253,216.06,215.97,7.21220253]
[1736044059281,7.21220253,216.06,216.01,2.3149]
[1736044063486,7.21220253,216.06,215.98,7.21220253]
[1736044065188,7.21220253,216.06,216.01,2.315]
[1736044065488,2.56,216.07,215.98,7.21220253]
[1736044065684,7.21220253,216.06,216.03,2.3148]
[1736044065887,13.13036691,216.08,216.03,2.3148]
[1736044066785,10.81606691,216.08,216.03,2.3148]
[1736044067087,10.81606691,216.08,216.04,2.3147]
[1736044067287,10.81606691,216.08,216.0,7.21220253]
[1736044067483,10.81606691,216.08,216.01,1.3982]
[1736044067687,3.60386438,216.08,216.05,2.3146]
[1736044067882,3.60386438,216.08,216.02,7.21220253]
[1736044068086,3.60386438,216.08,216.02,8.61060253]
[1736044069380,3.60386438,216.08,216.05,2.3145]
[1736044070486,7.21220253,216.09,216.05,2.3145]
[1736044074599,7.21220253,216.07,216.03,2.3147]
[1736044074789,7.21220253,216.07,216.01,1.3982]
[1736044076398,7.21220253,216.07,216.03,2.3148]
[1736044079002,9.52660253,216.07,216.02,2.3149]
[1736044080702,7.21220253,216.07,216.0,7.21220253]
[1736044080903,7.21220253,216.07,215.98,7.21220253]
[1736044081299,9.77220253,216.07,215.98,7.21220253]
[1736044081503,9.77220253,216.07,215.96,4.0711]
[1736044081702,9.77220253,216.07,215.98,7.21220253]
[1736044082393,2.3146,216.05,216.0,2.3151]
[1736044083202,9.52680253,216.05,216.0,2.3151]
[1736044086999,9.52680253,216.05,216.01,2.315]
[1736044087000,7.21220253,216.05,216.01,2.315]
[1736044091304,7.21220253,216.07,216.02,2.3148]
[1736044091901,7.21220253,216.07,216.03,2.3148]
[1736044095197,7.21220253,216.07,216.0,7.21220253]
[1736044095404,7.21220253,216.07,216.02,2.3149]
[1736044095701,7.21220253,216.05,215.97,1.4137]
[1736044096101,7.21220253,216.05,215.98,7.21220253]
[1736044096405,7.21220253,216.05,216.0,2.315]
[1736044097307,7.21220253,216.05,216.01,2.315]
[1736044102608,2.3145,216.06,216.01,2.315]
[1736044104308,2.3145,216.06,215.98,7.21220253]
[1736044104509,7.21220253,216.05,215.99,2.3151]
[1736044105214,7.21220253,216.05,216.0,2.3151]
[1736044105512,9.52680253,216.05,215.98,7.21220253]
[1736044105714,9.52680253,216.05,215.99,2.3152]
[1736044111015,7.21220253,216.03,215.92,2.3159]
[1736044111218,7.21220253,216.01,215.93,9.77220253]
[1736044111516,7.21220253,216.01,215.91,2.56]
[1736044111720,7.21220253,215.99,215.92,7.21220253]
[1736044112316,2.56,215.98,215.92,7.21220253]
[1736044112520,2.56,215.98,215.9,7.21220253]
[1736044113416,4.8753,215.98,215.92,2.3159]
[1736044113911,7.21220253,215.97,215.92,2.3159]
[1736044114917,4.8753,215.98,215.92,2.3159]
[1736044115117,7.21220253,215.97,215.92,2.3159]
[1736044126027,9.77220253,215.99,215.93,2.3158]
[1736044127128,7.21220253,216.0,215.92,7.21220253]
[1736044127331,7.21220253,216.0,215.94,7.21220253]
[1736044128331,7.21220253,216.0,215.95,2.3155]
[1736044128727,7.21220253,216.0,215.94,7.21220253]
[1736044128923,7.21220253,216.02,215.94,7.21220253]
[1736044129128,7.21220253,216.02,215.96,7.21220253]
[1736044130132,7.21220253,216.03,215.98,2.3153]
[1736044130633,9.52700253,216.04,215.98,2.3153]
[1736044131133,7.21220253,216.04,215.99,2.3151]
[1736044132340,7.21220253,216.06,216.01,2.315]
[1736044132634,382.2290455,216.16,216.0,7.21220253]
[1736044132837,7.21220253,216.07,216.0,7.21220253]
[1736044133033,7.21220253,216.07,216.02,2.3149]
[1736044135442,7.21220253,216.07,215.98,7.21220253]
[1736044135742,9.52660253,216.07,216.0,2.315]
[1736044135936,7.21220253,216.05,216.0,2.315]
[1736044136838,7.21220253,216.05,215.98,7.21220253]
[1736044137141,7.21220253,216.05,216.01,2.315]
[1736044142042,9.52680253,216.05,215.99,2.3151]
[1736044142247,7.21220253,216.03,215.99,2.3151]
[1736044147244,7.21220253,216.03,216.0,2.3151]
[1736044148149,9.52680253,216.05,216.0,2.3151]
[1736044148346,7.21220253,216.05,216.01,2.315]
[1736044148553,7.21220253,216.05,215.98,7.21220253]
[1736044148753,9.77220253,216.07,215.98,7.21220253]
[1736044148952,2.56,216.09,216.04,2.3146]
[1736044149148,7.21220253,216.08,216.04,2.3146]
[1736044150556,7.21220253,216.1,216.02,7.21220253]
[1736044150755,7.21220253,216.1,216.04,7.21220253]
[1736044151546,7.21220253,216.1,216.06,2.3144]
[1736044152255,7.21220253,216.1,216.04,7.21220253]
[1736044152555,7.21220253,216.12,216.04,7.21220253]
[1736044153452,7.21220253,216.12,216.0,4.411]
[1736044153653,7.21220253,216.12,216.03,7.21220253]
[1736044154658,9.52600253,216.12,216.03,7.21220253]
[1736044154950,2.3138,216.12,216.03,7.21220253]
[1736044155157,7.21220253,216.1,216.03,7.21220253]
[1736044155853,7.21220253,216.1,216.02,7.21220253]
[1736044156555,7.21220253,216.1,216.06,2.3145]
[1736044157759,7.21220253,216.1,216.04,2.3146]
[1736044157958,7.21220253,216.08,216.04,2.3146]
[1736044158361,7.21220253,216.06,215.88,25.78279034]
[1736044158560,17.46766486,216.14,215.92,7.21220253]
[1736044158561,7.21220253,216.01,215.92,7.21220253]
[1736044158755,9.77220253,216.01,215.92,7.21220253]
[1736044159260,7.21220253,215.99,215.95,2.3156]
[1736044159459,9.77220253,216.01,215.95,2.3156]
[1736044159660,9.77220253,216.01,215.93,7.21220253]
[1736044160361,9.77220253,216.01,215.97,2.3154]
[1736044161257,9.77220253,216.01,215.93,7.21220253]
[1736044161554,2.56,216.01,215.93,7.21220253]
[1736044161859,7.21220253,216.03,216.0,2.3151]
[1736044162652,7.21220253,216.03,215.98,2.3152]
[1736044169169,7.21220253,216.01,215.98,2.3152]
[1736044170568,7.21220253,216.01,215.96,2.3154]
[1736044174175,2.3149,216.02,215.96,2.3154]
[1736044174370,7.21220253,216.01,215.96,2.3154]
[1736044174774,2.3149,216.02,215.93,7.21220253]
[1736044174976,9.52710253,216.02,215.97,2.3154]
[1736044175371,2.3149,216.02,215.97,2.3154]
[1736044175572,4.8748,216.04,215.99,2.3152]
[1736044175872,7.21220253,216.02,215.99,2.3152]
[1736044181581,7.21220253,216.02,215.95,7.21220253]
[1736044182483,7.21220253,216.02,215.98,2.3153]
[1736044189379,9.52710253,216.02,215.97,2.3154]
[1736044198304,7.21220253,216.02,215.89,2.8941]
[1736044198602,7.21220253,216.02,215.97,2.3154]
[1736044199404,7.21220253,216.02,215.98,2.3153]
[1736044199803,7.21220253,216.02,215.93,7.21220253]
[1736044200304,2.56,216.03,215.9,2.56]
[1736044200606,2.56,216.03,215.94,7.21220253]
[1736044201003,7.21220253,216.02,215.94,7.21220253]
[1736044201205,7.21220253,216.02,215.98,2.3152]
[1736044205205,4.8748,216.03,215.98,2.3152]
[1736044205405,12.08700253,216.03,215.98,2.3152]
[1736044206009,9.77220253,216.03,215.98,2.3152]
[1736044206210,9.77220253,216.03,215.99,2.3152]
[1736044207506,7.21220253,216.03,215.94,7.21220253]
[1736044208111,7.21220253,216.03,216.0,2.3151]
[1736044210712,16.04904072,216.03,216.0,2.3151]
[1736044210915,7.21220253,216.03,215.94,7.21220253]
[1736044211211,7.21220253,216.01,215.98,2.3153]
[1736044211807,7.21220253,216.01,215.92,9.77220253]
[1736044213011,7.21220253,216.01,215.97,2.3154]
[1736044214515,7.21220253,216.01,215.95,2.3156]
[1736044215408,2.3151,216.0,215.95,2.3156]
[1736044215810,7.21220253,215.99,215.95,2.3156]
[1736044217412,9.77220253,215.99,215.95,2.3156]
[1736044221320,7.21220253,215.97,215.93,2.3158]
[1736044221509,7.21220253,215.97,215.9,7.21220253]
[1736044222411,7.21220253,215.97,215.94,2.3158]
[1736044222606,12.08740253,215.99,215.94,2.3158]
[1736044223620,7.21220253,215.97,215.94,2.3158]
[1736044223913,7.21220253,215.97,215.91,2.316]
[1736044224114,7.21220253,215.97,215.89,72.355747]
[1736044225206,2.3153,215.98,215.92,2.3159]
[1736044225419,7.21220253,215.93,215.89,65.14354447]
[1736044226117,7.21220253,215.93,215.91,2.316]
[1736044226921,7.21220253,215.95,215.92,2.316]
[1736044227310,7.21220253,215.97,215.9,7.21220253]
[1736044227514,7.21220253,215.97,215.95,2.3156]
[1736044228220,9.77220253,215.99,215.95,2.3156]
[1736044229917,7.21220253,215.97,215.95,2.3156]
[1736044230516,7.21220253,215.97,215.9,7.21220253]
[1736044230723,9.52760253,215.97,215.92,2.3159]
[1736044231223,7.21220253,215.95,215.9,2.3161]
[1736044231518,7.21220253,215.95,215.89,65.14354447]
[1736044232519,7.21220253,215.95,215.91,2.3161]
[1736044234318,7.21220253,215.95,215.92,2.316]
[1736044235216,7.21220253,215.95,215.91,2.316]
[1736044238718,7.21220253,215.93,215.89,62.24944447]
[1736044239124,2.316,215.92,215.89,62.24944447]
[1736044239424,2.316,215.92,215.87,2.3164]
[1736044239815,7.21220253,215.93,215.85,7.21220253]
[1736044240228,7.21220253,215.93,215.87,7.21220253]
[1736044240520,7.21220253,215.93,215.88,2.3163]
[1736044240727,7.21220253,215.93,215.87,7.21220253]
[1736044243427,7.21220253,215.93,215.9,2.3162]
[1736044244223,2.56,215.94,215.9,2.3162]
[1736044244523,9.77220253,215.94,215.9,2.3162]
[1736044246031,12.08800253,215.94,215.9,2.3162]
[1736044248227,7.21220253,215.93,215.9,2.3162]
[1736044248930,7.21220253,215.93,215.86,7.21220253]
[1736044248931,2.56,215.94,215.86,7.21220253]
[1736044249131,2.56,215.94,215.92,2.3159]
[1736044249323,7.21220253,215.95,215.92,2.3159]
[1736044249522,9.52780253,215.95,215.87,2.3165]
[1736044249726,9.52780253,215.95,215.86,7.21220253]
[1736044251132,7.21220253,215.93,215.86,7.21220253]
[1736044252533,7.21220253,215.93,215.88,2.3164]
[1736044253324,7.21220253,215.93,215.86,7.21220253]
[1736044253630,7.21220253,215.93,215.89,2.3163]
[1736044257133,7.21220253,215.93,215.9,2.3162]
[1736044261040,7.21220253,215.93,215.88,2.3163]
[1736044261240,7.21220253,215.93,215.86,7.21220253]
[1736044262435,7.21220253,215.93,215.89,2.3162]
[1736044263339,7.21220253,215.91,215.87,2.3164]
[1736044263838,9.77220253,215.91,215.87,2.3164]
[1736044264238,12.08830253,215.91,215.87,2.3164]
[1736044264541,12.08830253,215.91,215.84,4.2246]
[1736044264542,12.08830253,215.91,215.86,2.3166]
[1736044265343,12.08830253,215.91,215.84,4.2246]
[1736044265542,7.21220253,215.91,215.87,2.3165]
[1736044265842,9.77220253,215.91,215.87,2.3165]
[1736044266742,9.77220253,215.91,215.88,2.3164]
[1736044270051,7.21220253,215.89,215.83,2.3169]
[1736044270245,7.21220253,215.87,215.83,2.3169]
[1736044274948,3.47629606,215.91,215.8,7.21220253]
[1736044275245,7.21220253,215.89,215.83,7.21220253]
[1736044276448,7.21220253,215.89,215.85,2.3167]
[1736044277451,4.8761,215.91,215.81,5.1346]
[1736044277452,7.21220253,215.87,215.81,5.1346]
[1736044278051,7.21220253,215.87,215.81,2.8176]
[1736044278253,7.21220253,215.87,215.82,2.317]
[1736044278453,7.21220253,215.87,215.81,2.8176]
[1736044278454,7.21220253,215.85,215.8,48.95907877]
[1736044279053,7.21220253,215.85,215.81,2.3171]
[1736044279358,2.3166,215.87,215.81,2.3171]
[1736044279650,7.21220253,215.86,215.81,2.3171]
[1736044280152,7.21220253,215.86,215.83,2.3169]
[1736044280452,7.21220253,215.86,215.8,56.1712813]
[1736044280453,7.21220253,215.88,215.82,7.21220253]
[1736044282154,7.21220253,215.88,215.8,56.1712813]
[1736044282654,7.21220253,215.86,215.8,48.95907877]
[1736044283455,7.21220253,215.86,215.83,2.3169]
[1736044285651,2.3163,215.89,215.84,2.3168]
[1736044285851,7.21220253,215.86,215.84,2.3168]
[1736044287356,7.21220253,215.86,215.82,2.3169]
[1736044287550,7.21220253,215.86,215.8,48.95907877]
[1736044288554,9.52880253,215.86,215.81,2.3171]
[1736044290759,7.21220253,215.82,215.7,2.56]
[1736044290961,7.21220253,215.82,215.75,7.21220253]
[1736044291866,7.21220253,215.82,215.79,2.3173]
[1736044292461,7.21220253,215.82,215.8,2.3172]
[1736044292866,7.21220253,215.84,215.8,2.3172]
[1736044295669,7.21220253,215.82,215.77,2.3175]
[1736044297269,9.52920253,215.82,215.77,2.3175]
[1736044298770,7.21220253,215.8,215.77,2.3175]
[1736044298971,7.21220253,215.8,215.75,2.3177]
[1736044299663,7.21220253,215.78,215.75,2.3177]
[1736044305273,7.21220253,215.78,215.74,2.3179]
[1736044306676,7.21220253,215.78,215.76,2.3177]
[1736044306876,9.77220253,215.8,215.76,2.3177]
[1736044307469,9.77220253,215.8,215.74,2.3178]
[1736044307967,9.77220253,215.8,215.72,7.21220253]
[1736044307968,12.08950253,215.8,215.72,7.21220253]
[1736044308171,12.08950253,215.8,215.75,2.3178]
[1736044309376,9.52950253,215.8,215.75,2.3178]
[1736044309677,2.56,215.79,215.75,2.3178]
[1736044310176,2.56,215.79,215.76,2.3177]
[1736044310378,7.21220253,215.8,215.76,2.3177]
[1736044310679,2.56,215.79,215.76,2.3177]
[1736044312071,2.56,215.79,215.77,2.3175]
[1736044312268,7.21220253,215.8,215.72,7.21220253]
[1736044314476,7.21220253,215.8,215.77,2.3175]
[1736044315077,7.21220253,215.8,215.73,2.318]
[1736044315277,7.21220253,215.8,215.71,7.21220253]
[1736044315278,7.21220253,215.78,215.71,7.21220253]
[1736044316483,9.52970253,215.78,215.73,2.318]
[1736044319782,7.21220253,215.78,215.74,2.3179]
[1736044329787,7.21220253,215.76,215.74,2.3179]
[1736044333291,7.21220253,215.76,215.67,4.3466]
[1736044333487,7.21220253,215.74,215.72,2.3181]
[1736044340188,9.77220253,215.76,215.67,11.55880253]
[1736044340388,7.21220253,215.76,215.69,7.21220253]
[1736044340989,7.21220253,215.76,215.72,2.318]
[1736044342394,7.21220253,215.76,215.73,2.318]
[1736044343196,7.21220253,215.76,215.74,2.3179]
[1736044343800,7.21220253,215.76,215.73,2.318]
[1736044352606,7.21220253,215.76,215.72,2.3181]
[1736044356002,9.52990253,215.76,215.68,7.21220253]
[1736044356806,7.21220253,215.7,215.62,7.21220253]
[1736044357205,7.21220253,215.7,215.65,2.3189]
[1736044358508,7.21220253,215.7,215.62,7.21220253]
[1736044358707,7.21220253,215.7,215.67,2.3187]
[1736044359003,7.21220253,215.7,215.62,7.21220253]
[1736044360404,7.21220253,215.7,215.68,2.3185]
[1736044365005,9.77220253,215.72,215.68,2.3185]
[1736044368105,7.21220253,215.72,215.68,2.3185]
[1736044368306,9.77220253,215.72,215.68,2.3185]
[1736044371107,9.77220253,215.72,215.61,2.56]
[1736044371108,3.4786786,215.76,215.66,7.21220253]
[1736044371311,2.56,215.75,215.68,7.21220253]
[1736044372410,2.56,215.75,215.72,2.3181]
[1736044374410,2.56,215.75,215.71,2.3182]
[1736044374611,12.08990253,215.76,215.71,2.3182]
[1736044382115,9.52990253,215.76,215.71,2.3182]
[1736044385014,8.83274254,215.78,215.69,7.21220253]
[1736044385213,8.83274254,215.78,215.71,7.21220253]
[1736044385413,9.77220253,215.8,215.73,7.21220253]
[1736044386213,9.77220253,215.8,215.76,2.3177]
[1736044386415,11.15004254,215.81,215.73,7.21220253]
[1736044386620,12.16083905,215.82,215.75,7.21220253]
[1736044386815,12.16083905,215.82,215.78,2.3175]
[1736044387712,4.94863652,215.82,215.79,2.3173]
[1736044391814,4.94863652,215.82,215.77,7.21220253]
[1736044391815,23.61362744,215.81,215.77,1.18388593]
[1736044392013,23.61362744,215.81,215.76,7.21220253]
[1736044392210,4.94863652,215.82,215.76,5.9120919]
[1736044392211,23.61362744,215.8,215.76,5.9120919]
[1736044392619,23.61362744,215.79,215.77,2.3175]
[1736044392812,12.16083905,215.82,215.77,2.3175]
[1736044394820,4.94863652,215.82,215.72,55.77825908]
[1736044395020,7.21220253,215.78,215.73,2.318]
[1736044396024,7.21220253,215.78,215.74,4.65109752]
[1736044396222,7.21220253,215.78,215.75,4.65109752]
[1736044396428,2.3174,215.79,215.75,4.65109752]
[1736044396725,2.3174,215.79,215.76,4.65109752]
[1736044397126,2.3174,215.79,215.77,4.65109752]
[1736044397326,2.3174,215.79,215.74,2.3179]
[1736044397627,2.3174,215.79,215.75,4.65097176]
[1736044398125,2.3174,215.79,215.76,4.65097176]
[1736044398523,2.3174,215.79,215.77,4.65097176]
[1736044398724,2.3174,215.79,215.74,2.3179]
[1736044399136,2.3174,215.79,215.75,4.6507365]
[1736044399530,2.3174,215.79,215.76,4.6507365]
[1736044400131,7.21220253,215.78,215.74,2.3179]
[1736044400432,7.21220253,215.78,215.75,4.6506703]
[1736044400829,7.21220253,215.78,215.76,4.6506703]
[1736044401025,7.21220253,215.78,215.74,2.3179]
[1736044401432,7.21220253,215.78,215.75,4.6506965]
[1736044401737,2.3174,215.79,215.76,4.6506965]
[1736044401925,12.08950253,215.8,215.76,4.6506965]
[1736044402124,12.08950253,215.8,215.74,2.3179]
[1736044402532,12.08950253,215.8,215.75,4.65033111]
[1736044402832,12.08950253,215.8,215.74,2.3179]
[1736044403532,12.08950253,215.8,215.75,4.65144981]
[1736044403831,12.08950253,215.8,215.76,4.65144981]
[1736044404033,12.08950253,215.8,215.74,2.3179]
[1736044404429,9.77220253,215.8,215.75,4.65192135]
[1736044404624,2.3174,215.79,215.75,4.65192135]
[1736044404832,2.3174,215.79,215.76,4.65192135]
[1736044405029,2.3174,215.79,215.74,2.3179]
[1736044405431,2.3174,215.79,215.75,4.63794344]
[1736044405831,2.3174,215.79,215.76,4.63794344]
[1736044406033,2.3174,215.79,215.74,2.3179]
[1736044406230,2.3174,215.79,215.75,4.6382822]
[1736044406734,2.3176,215.77,215.76,4.6382822]
[1736044407035,7.21220253,215.77,215.67,7.21220253]
[1736044407233,7.21220253,215.74,215.67,7.21220253]
[1736044408034,7.21220253,215.74,215.7,2.3182]
[1736044408234,7.21220253,215.74,215.67,7.21220253]
[1736044408731,7.21220253,215.74,215.69,2.3184]
[1736044408939,7.21220253,215.74,215.67,7.21220253]
[1736044409840,9.53010253,215.74,215.69,2.3184]
[1736044411635,2.3179,215.74,215.69,2.3184]
[1736044411937,2.56,215.79,215.71,7.21220253]
[1736044412138,7.21220253,215.78,215.71,7.21220253]
[1736044413439,7.21220253,215.78,215.74,2.3179]
[1736044414731,9.52970253,215.78,215.74,2.3179]
[1736044415241,7.21220253,215.78,215.7,7.21220253]
[1736044415540,7.21220253,215.74,215.68,7.21220253]
[1736044415931,9.53020253,215.74,215.68,9.53060253]
[1736044417143,9.53020253,215.74,215.69,2.3184]
[1736044419241,7.21220253,215.74,215.7,4.58600672]
[1736044419441,7.21220253,215.74,215.71,4.58600672]
[1736044419842,7.21220253,215.74,215.72,4.58600672]
[1736044420146,7.21220253,215.74,215.7,2.3183]
[1736044422647,9.53010253,215.74,215.7,2.3183]
[1736044426350,7.21220253,215.74,215.7,2.3183]
[1736044429354,9.53010253,215.74,215.7,2.3183]
[1736044430652,7.21220253,215.74,215.7,2.3183]
[1736044434161,9.53010253,215.74,215.7,2.3183]
[1736044435057,7.21220253,215.74,215.7,2.3183]
[1736044438566,7.21220253,215.74,215.66,7.21220253]
[1736044438567,2.3181,215.73,215.67,2.3186]
[1736044439660,7.21220253,215.74,215.67,2.3186]
[1736044439862,2.3181,215.72,215.67,2.3186]
[1736044440762,9.53030253,215.72,215.67,2.3186]
[1736044441362,7.21220253,215.72,215.68,2.3185]
[1736044445075,7.21220253,215.7,215.67,2.3187]
[1736044445371,9.77220253,215.7,215.67,2.3187]
[1736044446577,9.77220253,215.7,215.66,2.3188]
[1736044450178,2.56,215.7,215.64,7.21220253]
[1736044450579,2.56,215.7,215.67,2.3186]
[1736044450775,2.56,215.7,215.64,7.21220253]
[1736044452580,2.56,215.7,215.66,2.3187]
[1736044452773,9.77220253,215.7,215.66,2.3187]
[1736044453172,2.56,215.7,215.66,2.3187]
[1736044453472,9.77220253,215.7,215.66,2.3187]
[1736044454576,7.21220253,215.68,215.53,25.78279034]
[1736044454777,7.21220253,215.65,215.61,2.3193]
[1736044454977,9.77220253,215.65,215.61,2.3193]
[1736044456079,148.32891702,215.76,215.63,7.21220253]
[1736044456386,7.21220253,215.7,215.63,7.21220253]
[1736044456582,2.56,215.69,215.63,7.21220253]
[1736044457480,2.56,215.69,215.67,2.3186]
[1736044463290,7.21220253,215.7,215.67,2.3186]
[1736044463589,9.77220253,215.7,215.67,2.3186]
[1736044464590,9.77220253,215.7,215.66,2.3188]
[1736044465492,9.93647536,215.75,215.63,7.21220253]
[1736044465790,127.96632342,215.8,215.73,7.21220253]
[1736044465991,127.96632342,215.8,215.75,7.21220253]
[1736044466191,127.96632342,215.8,215.78,2.3174]
[1736044466581,9.77220253,215.83,215.78,2.3174]
[1736044467390,9.77220253,215.83,215.77,7.21220253]